bitfinex-derivatives/quotes_BTCF0:USTF0_20240815
["timestamp","ask_amount","ask_price","bid_price","bid_amount"]
[1723689853097,0.171,58540.0,58539.0,0.43218472]
[1723689853487,0.171,58540.0,58539.0,0.42918472]
[1723689854091,0.171,58540.0,58539.0,0.25203515]
[1723689855186,0.171,58540.0,58539.0,0.78997429]
[1723689855486,0.171,58540.0,58539.0,0.42917429]
[1723689855685,0.171,58540.0,58539.0,0.42916559]
[1723689855885,0.171,58540.0,58539.0,0.25203515]
[1723689856293,0.171,58540.0,58539.0,0.61283515]
[1723689856691,0.230778,58540.0,58539.0,0.19225615]
[1723689857192,0.171,58540.0,58539.0,0.19225615]
[1723689857394,0.171,58540.0,58539.0,0.25203515]
[1723689857798,0.171,58540.0,58539.0,0.42917554]
[1723689858302,0.171,58540.0,58539.0,0.42917626]
[1723689858899,0.171,58540.0,58539.0,0.78997626]
[1723689859098,0.171,58540.0,58539.0,1.05197626]
[1723689859603,0.171,58540.0,58539.0,1.11133515]
[1723689859995,0.171,58540.0,58539.0,0.75053515]
[1723689860195,0.171,58540.0,58539.0,0.51403515]
[1723689860604,0.171,58540.0,58539.0,0.87483515]
[1723689861699,0.171,58540.0,58539.0,1.62381515]
[1723689861893,0.17061958,58540.0,58539.0,2.08359415]
[1723689862103,0.00012427,58555.0,58542.0,0.059775]
[1723689862404,0.16025615,58550.0,58549.0,0.420569]
[1723689862607,0.58082415,58550.0,58549.0,0.15]
[1723689862902,0.059779,58539.0,58538.0,1.5e-07]
[1723689863107,1.09822427,58539.0,58519.0,0.41122998]
[1723689863299,0.420595,58523.0,58522.0,0.15020384]
[1723689863498,0.059806,58513.0,58507.0,0.05042998]
[1723689863799,0.3608,58511.0,58501.0,0.05042998]
[1723689863999,0.3608,58511.0,58501.0,0.15]
[1723689864000,0.5973,58502.0,58501.0,0.15]
[1723689864200,0.7573,58502.0,58486.0,0.05042998]
[1723689864403,0.7573,58502.0,58479.0,0.3608]
[1723689864404,0.3608,58488.0,58487.0,0.08]
[1723689864612,0.5208,58488.0,58487.0,0.08]
[1723689864797,0.5208,58488.0,58487.0,0.14]
[1723689864798,0.580632,58488.0,58487.0,0.14]
[1723689865111,0.16,58488.0,58487.0,0.14]
[1723689865296,0.16,58488.0,58482.0,0.00025638]
[1723689865500,0.059836,58484.0,58482.0,0.00025638]
[1723689865713,0.169836,58484.0,58482.0,0.00025638]
[1723689865907,0.059845,58475.0,58470.0,0.3608]
[1723689866203,0.059849,58472.0,58470.0,0.3608]
[1723689866606,0.059851,58470.0,58466.0,0.00017899]
[1723689866796,0.420653,58467.0,58466.0,0.00017899]
[1723689867199,0.420653,58467.0,58457.0,0.3608]
[1723689867200,0.059862,58458.0,58457.0,0.3608]
[1723689867399,0.059865,58456.0,58446.0,0.3608]
[1723689867605,0.3608,58460.0,58446.0,0.3608]
[1723689867606,0.3608,58455.0,58446.0,0.5108]
[1723689868204,0.3608,58455.0,58445.0,0.0002566]
[1723689868410,0.3608,58450.0,58445.0,0.0002566]
[1723689868599,0.00020015,58454.0,58449.0,0.3608]
[1723689868799,0.00020015,58454.0,58452.0,0.420668]
[1723689869099,0.00020015,58454.0,58452.0,0.570668]
[1723689869311,0.33548671,58470.0,58453.0,0.77035396]
[1723689869312,0.27563671,58470.0,58453.0,0.77035396]
[1723689869608,0.001,58470.0,58466.0,0.3608]
[1723689870204,0.3608,58473.0,58466.0,0.420654]
[1723689870407,0.00021525,58467.0,58466.0,0.420654]
[1723689871109,0.0002566,58472.0,58466.0,0.420654]
[1723689871110,0.0002566,58472.0,58470.0,0.05985]
[1723689871699,0.0002566,58472.0,58471.0,0.3608]
[1723689871910,0.0003483,58472.0,58471.0,0.3608]
[1723689874109,0.0003483,58472.0,58471.0,0.87388]
[1723689874311,0.27463671,58491.0,58471.0,1.70569267]
[1723689874517,0.3608,58490.0,58479.0,0.3608]
[1723689874721,0.059831,58489.0,58481.0,0.059839]
[1723689874917,0.059831,58489.0,58481.0,0.219839]
[1723689875118,0.059831,58489.0,58481.0,0.16]
[1723689875315,0.069831,58489.0,58481.0,0.16]
[1723689875516,0.3608,58495.0,58491.0,0.059828]
[1723689875725,0.3708,58495.0,58491.0,0.16]
[1723689875920,0.01,58495.0,58493.0,0.059826]
[1723689876220,0.01,58495.0,58493.0,0.219826]
[1723689876821,0.01,58495.0,58494.0,0.059825]
[1723689877122,0.0002566,58499.0,58498.0,0.059821]
[1723689877316,0.0002566,58499.0,58498.0,0.219821]
[1723689879431,0.3608,58510.0,58503.0,0.059816]
[1723689879624,0.05982,58500.0,58497.0,0.3608]
[1723689879818,0.3618,58499.0,58485.0,0.3608]
[1723689880019,0.420625,58494.0,58485.0,0.3608]
[1723689880228,0.530625,58494.0,58490.0,0.059829]
[1723689880420,0.4708,58494.0,58491.0,0.059828]
[1723689880726,0.4708,58494.0,58493.0,0.2200826]
[1723689880727,0.11,58494.0,58493.0,0.2200826]
[1723689880924,0.11,58494.0,58493.0,0.0600826]
[1723689881630,0.11,58494.0,58493.0,0.0690826]
[1723689882529,0.11,58494.0,58493.0,0.2290826]
[1723689883023,0.111,58494.0,58493.0,0.2290826]
[1723689883235,0.112,58494.0,58493.0,0.2380826]
[1723689888422,0.4728,58494.0,58493.0,0.2380826]
[1723689889023,0.4728,58494.0,58493.0,0.1782566]
[1723689889230,0.532625,58494.0,58493.0,0.1782566]
[1723689890827,0.112,58494.0,58493.0,0.2380826]
[1723689891634,0.112,58494.0,58493.0,0.7509626]
[1723689899045,0.112,58494.0,58493.0,1.1509626]
[1723689899337,0.112,58494.0,58493.0,1.20139258]
[1723689899645,0.15,58500.0,58499.0,0.05982]
[1723689899833,0.17,58500.0,58499.0,0.20982]
[1723689900940,0.17,58500.0,58499.0,0.21182]
[1723689901844,0.17,58500.0,58499.0,0.21482]
[1723689904440,0.17,58500.0,58499.0,0.2656283]
[1723689904644,0.650438,58500.0,58499.0,0.20580896]
[1723689904851,0.650438,58500.0,58499.0,0.155]
[1723689905235,0.590619,58500.0,58499.0,0.155]
[1723689906239,0.60369734,58500.0,58499.0,0.155]
[1723689906533,0.67198733,58500.0,58499.0,0.155]
[1723689907449,0.60369734,58500.0,58499.0,0.155]
[1723689910448,0.059823,58496.0,58495.0,0.0508099]
[1723689910638,0.199823,58496.0,58495.0,0.15]
[1723689910945,0.059824,58495.0,58494.0,0.0508099]
[1723689911145,0.059825,58494.0,58493.0,0.0002566]
[1723689911444,1.103505,58494.0,58493.0,0.0002566]
[1723689912051,0.590625,58494.0,58493.0,0.1502566]
[1723689912342,0.65891136,58494.0,58493.0,0.1502566]
[1723689912552,0.596625,58494.0,58493.0,0.1512566]
[1723689912746,0.66491136,58494.0,58493.0,0.1512566]
[1723689912951,0.596625,58494.0,58493.0,0.1512566]
[1723689913138,0.66491136,58494.0,58493.0,0.1512566]
[1723689913649,0.596625,58494.0,58493.0,0.1512566]
[1723689914037,0.67814682,58494.0,58493.0,0.1512566]
[1723689914235,0.61786046,58494.0,58493.0,0.1522566]
[1723689915249,0.61786046,58494.0,58493.0,0.32955079]
[1723689915641,0.55803546,58494.0,58493.0,0.38937679]
[1723689915941,0.184,58494.0,58493.0,0.32955079]
[1723689916248,0.604625,58494.0,58493.0,0.38036486]
[1723689916645,0.243825,58494.0,58493.0,0.1522566]
[1723689916844,0.243825,58494.0,58493.0,0.38037959]
[1723689917145,0.29501549,58494.0,58493.0,0.38037959]
[1723689917544,0.243825,58494.0,58493.0,0.38037959]
[1723689917743,0.184,58494.0,58493.0,0.38937121]
[1723689917939,0.23518891,58494.0,58493.0,0.44020559]
[1723689918252,0.184,58494.0,58493.0,0.38937121]
[1723689922049,0.243825,58494.0,58493.0,0.32954521]
[1723689922252,0.243825,58494.0,58493.0,0.39737076]
[1723689922447,0.243825,58494.0,58493.0,0.45719676]
[1723689923656,0.243825,58494.0,58493.0,0.45719075]
[1723689925054,0.184,58494.0,58493.0,0.3893652]
[1723689925247,0.184,58494.0,58493.0,0.45719075]
[1723689927152,0.184,58494.0,58493.0,0.27990815]
[1723689927348,0.184,58494.0,58493.0,0.38936559]
[1723689927553,0.184,58494.0,58493.0,0.2120826]
[1723689927753,0.184,58494.0,58493.0,0.38937133]
[1723689928447,0.184,58494.0,58493.0,0.44023096]
[1723689928759,0.23520172,58494.0,58493.0,0.38937133]
[1723689929052,0.59600172,58494.0,58493.0,0.38937316]
[1723689929955,0.5448,58494.0,58493.0,0.38937316]
[1723689930657,0.59600172,58494.0,58493.0,0.44023279]
[1723689930862,0.59600172,58494.0,58493.0,0.44023186]
[1723689931054,0.59600172,58494.0,58493.0,0.38937223]
[1723689931452,0.5448,58494.0,58493.0,0.44023186]
[1723689932360,0.235216,58494.0,58493.0,0.38937223]
[1723689932659,0.184,58494.0,58493.0,0.38937223]
[1723689933157,0.184,58494.0,58493.0,0.47452272]
[1723689933358,0.184,58494.0,58493.0,0.38937223]
[1723689933561,0.184,58494.0,58493.0,0.6007487]
[1723689933753,0.184,58494.0,58493.0,0.51559821]
[1723689934359,0.0512187,58505.0,58504.0,0.059815]
[1723689934564,0.01,58505.0,58504.0,1.54684666]
[1723689934856,0.0512187,58517.0,58516.0,0.059803]
[1723689935055,0.06,58517.0,58516.0,0.62349263]
[1723689936264,0.119802,58517.0,58516.0,0.32728963]
[1723689936760,0.119802,58517.0,58516.0,0.15]
[1723689936959,0.129802,58517.0,58516.0,0.151]
[1723689937156,1.042482,58517.0,58516.0,0.17821607]
[1723689937558,1.042482,58517.0,58516.0,0.001]
[1723689937859,1.048482,58517.0,58516.0,0.002]
[1723689938465,0.059807,58512.0,58506.0,0.059813]
[1723689938668,0.590607,58512.0,58511.0,0.17749658]
[1723689939159,0.590607,58512.0,58511.0,0.00025637]
[1723689939861,0.599607,58512.0,58511.0,0.00125637]
[1723689941863,0.599607,58512.0,58511.0,0.15125637]
[1723689942074,0.179,58512.0,58511.0,0.44746437]
[1723689942262,0.179,58512.0,58511.0,0.6246859]
[1723689942661,0.187,58512.0,58511.0,0.9864859]
[1723689943256,0.187,58512.0,58511.0,1.4992059]
[1723689943463,0.187,58512.0,58511.0,1.49919178]
[1723689944663,0.187,58512.0,58511.0,0.98647178]
[1723689945369,0.187,58512.0,58511.0,0.99949722]
[1723689945777,0.187,58512.0,58511.0,0.99849787]
[1723689946067,0.17,58512.0,58511.0,1.00349787]
[1723689946371,0.171,58512.0,58511.0,0.88293254]
[1723689946560,0.171,58512.0,58511.0,1.00949909]
[1723689946760,0.171,58512.0,58511.0,1.23136877]
[1723689946960,0.17,58512.0,58511.0,1.17970837]
[1723689947158,0.17,58512.0,58511.0,1.23636237]
[1723689947159,0.171,58512.0,58511.0,1.23636237]
[1723689947355,0.171,58512.0,58511.0,1.18570837]
[1723689947659,0.171,58512.0,58511.0,1.23635023]
[1723689947965,0.001,58512.0,58511.0,2.41624473]
[1723689948171,0.101,58512.0,58511.0,2.35643673]
[1723689948461,0.101,58512.0,58511.0,1.18570837]
[1723689948662,0.101,58512.0,58511.0,1.18670837]
[1723689949575,0.101,58512.0,58511.0,1.186693]
[1723689950068,0.101,58512.0,58511.0,1.18669306]
[1723689951268,0.101,58512.0,58511.0,1.00949909]
[1723689951457,0.101,58512.0,58511.0,0.77309909]
[1723689952064,0.101,58512.0,58511.0,0.51668184]
[1723689952272,1.133334,58512.0,58511.0,0.16225637]
[1723689952566,0.119618,58510.0,58509.0,0.22]
[1723689952865,0.059818,58502.0,58497.0,0.059822]
[1723689953067,0.059819,58501.0,58498.0,0.5208]
[1723689953261,0.219819,58501.0,58498.0,0.5208]
[1723689953769,0.16,58501.0,58500.0,0.296219]
[1723689953967,0.16,58501.0,58500.0,0.446219]
[1723689954470,0.161,58501.0,58500.0,1.1362677]
[1723689954664,0.162,58501.0,58500.0,0.446219]
[1723689955361,0.162,58501.0,58500.0,0.62346811]
[1723689955962,0.161,58501.0,58500.0,0.62346811]
[1723689956368,0.161,58501.0,58500.0,0.63346811]
[1723689956570,0.162,58501.0,58500.0,0.64046811]
[1723689957169,0.162,58501.0,58500.0,1.20389338]
[1723689957367,0.162,58501.0,58500.0,1.15326811]
[1723689957863,0.162,58501.0,58500.0,0.226819]
[1723689958069,0.162,58501.0,58500.0,0.40406154]
[1723689958267,0.162,58501.0,58500.0,0.45482109]
[1723689958461,0.162,58501.0,58500.0,0.40406154]
[1723689959969,0.162,58501.0,58500.0,0.40407667]
[1723689960469,0.162,58501.0,58500.0,0.45483622]
[1723689960859,0.162,58501.0,58500.0,0.40407667]
[1723689961469,0.162,58501.0,58500.0,0.518506]
[1723689961672,0.162,58501.0,58500.0,0.69575288]
[1723689961864,0.162,58501.0,58500.0,0.62796588]
[1723689962865,0.15,58507.0,58506.0,0.059813]
[1723689963067,0.12,58507.0,58506.0,0.63190774]
[1723689963466,0.12,58507.0,58506.0,0.69972632]
[1723689963770,0.12,58507.0,58506.0,0.63190774]
[1723689963964,0.12,58507.0,58506.0,0.70474201]
[1723689964163,0.12,58507.0,58506.0,0.64090774]
[1723689964359,0.12,58507.0,58506.0,0.46366086]
[1723689964566,0.12,58507.0,58506.0,0.64088539]
[1723689964869,0.12,58507.0,58506.0,0.72565861]
[1723689965074,0.12,58507.0,58506.0,0.64088539]
[1723689965972,0.12,58507.0,58506.0,0.33622453]
[1723689966268,0.179812,58507.0,58506.0,0.159]
[1723689968377,1.14363751,58507.0,58506.0,0.159]
[1723689969078,0.24416501,58507.0,58506.0,0.159]
[1723689969279,0.19305396,58507.0,58506.0,0.159]
[1723689969777,0.12,58507.0,58506.0,0.39606299]
[1723689971679,0.12,58507.0,58506.0,0.44696572]
[1723689971875,0.12,58507.0,58506.0,0.26972213]
[1723689972176,0.12,58507.0,58506.0,0.39605451]
[1723689974567,0.12,58507.0,58506.0,0.33624151]
[1723689974568,0.179812,58507.0,58506.0,0.33624151]
[1723689974768,0.179812,58507.0,58506.0,0.33625724]
[1723689974978,0.179812,58507.0,58506.0,0.159]
[1723689975182,0.179812,58507.0,58506.0,0.3362591]
[1723689975475,0.23092305,58507.0,58506.0,0.33626197]
[1723689975684,0.179812,58507.0,58506.0,0.33626197]
[1723689975879,0.179812,58507.0,58506.0,0.159]
[1723689977075,0.179812,58507.0,58506.0,0.33627289]
[1723689978177,0.12,58507.0,58506.0,0.33627289]
[1723689978677,0.12,58507.0,58506.0,0.33624297]
[1723689978876,0.12,58507.0,58506.0,0.33624189]
[1723689979379,0.12,58507.0,58506.0,0.39605489]
[1723689980486,0.12,58507.0,58506.0,0.46391939]
[1723689981081,0.23092351,58507.0,58506.0,0.33624189]
[1723689981272,1.39725836,58507.0,58506.0,0.33624189]
[1723689981483,1.388784,58507.0,58506.0,0.159]
[1723689981694,1.4130618,58507.0,58506.0,0.159]
[1723689982077,1.41431112,58507.0,58506.0,0.159]
[1723689982385,1.388784,58507.0,58506.0,0.159]
[1723689982593,1.47411497,58507.0,58506.0,0.33627598]
[1723689982889,1.388784,58507.0,58506.0,0.33627598]
[1723689983301,0.988784,58507.0,58506.0,0.33627598]
[1723689983882,0.179812,58507.0,58506.0,0.33627598]
[1723689984686,0.12,58507.0,58506.0,0.38728446]
[1723689984895,0.12,58507.0,58506.0,0.39608898]
[1723689985883,0.12,58507.0,58506.0,0.44693444]
[1723689986085,0.1711837,58507.0,58506.0,0.39606883]
[1723689986791,0.12,58507.0,58506.0,0.39606883]
[1723689988787,0.12,58507.0,58506.0,0.44694634]
[1723689989397,0.12,58507.0,58506.0,0.39606883]
[1723689990097,0.1711837,58507.0,58506.0,0.39606883]
[1723689992200,0.5319837,58507.0,58506.0,0.39606883]
[1723689993600,0.4808,58507.0,58506.0,0.44692702]
[1723689993802,0.12,58507.0,58506.0,0.46393285]
[1723689994098,0.12,58507.0,58506.0,1.87748443]
[1723689994297,0.12,58507.0,58506.0,1.79271121]
[1723689994700,0.0511837,58516.0,58515.0,0.059804]
[1723689994997,0.0511837,58516.0,58515.0,0.39705935]
[1723689994998,0.15,58516.0,58515.0,0.39705935]
[1723689995703,0.15,58516.0,58515.0,0.44778936]
[1723689996098,0.155,58516.0,58515.0,0.39705935]
[1723689996602,0.155,58516.0,58515.0,0.39703021]
[1723689996902,0.161,58516.0,58515.0,0.39803021]
[1723690000302,0.161,58516.0,58515.0,0.39803043]
[1723690003694,0.161,58516.0,58515.0,0.220804]
[1723690003899,0.161,58516.0,58515.0,0.3980246]
[1723690004207,0.161,58516.0,58515.0,0.39802454]
[1723690004394,0.21212685,58516.0,58515.0,0.39802454]
[1723690005824,0.161,58516.0,58515.0,0.39802454]
[1723690007408,0.161,58516.0,58515.0,0.39801848]
[1723690007703,0.161,58516.0,58515.0,0.44868257]
[1723690008896,0.161,58516.0,58515.0,0.33821448]
[1723690009101,0.220803,58516.0,58515.0,0.33821448]
[1723690009907,0.161,58516.0,58515.0,0.39801848]
[1723690011109,0.161,58516.0,58515.0,0.39803064]
[1723690012307,0.161,58516.0,58515.0,0.220804]
[1723690012701,0.161,58516.0,58515.0,0.3980279]
[1723690013205,0.161,58516.0,58515.0,0.220804]
[1723690013403,0.161,58516.0,58515.0,0.3980279]
[1723690013710,0.21212685,58516.0,58515.0,0.3980279]
[1723690014006,0.161,58516.0,58515.0,0.3980279]
[1723690014601,0.21212685,58516.0,58515.0,0.3980279]
[1723690014806,0.161,58516.0,58515.0,0.3980279]
[1723690015509,0.21212685,58516.0,58515.0,0.3980279]
[1723690015706,0.161,58516.0,58515.0,0.3382239]
[1723690015902,0.22924537,58516.0,58515.0,0.3382239]
[1723690016102,0.733483,58516.0,58515.0,0.3382239]
[1723690016304,1.193286,58516.0,58515.0,0.161]
[1723690016499,1.27861697,58516.0,58515.0,0.161]
[1723690016912,0.36593697,58516.0,58515.0,0.161]
[1723690017606,0.220803,58516.0,58515.0,0.161]
[1723690020506,0.30613397,58516.0,58515.0,0.161]
[1723690021006,0.161,58516.0,58515.0,0.161]
[1723690021211,0.161,58516.0,58515.0,0.39805201]
[1723690021715,0.220803,58516.0,58515.0,0.33823688]
[1723690022021,0.22924182,58516.0,58515.0,0.33823688]
[1723690024202,0.22924182,58516.0,58515.0,0.39804088]
[1723690025000,0.161,58516.0,58515.0,0.39804088]
[1723690025611,0.22924182,58516.0,58515.0,0.220804]
[1723690025810,0.22924182,58516.0,58515.0,0.39803535]
[1723690027907,0.161,58516.0,58515.0,0.39803535]
[1723690028316,0.22924182,58516.0,58515.0,0.39803535]
[1723690029011,0.22924182,58516.0,58515.0,0.3980331]
[1723690029418,0.22927189,58516.0,58515.0,0.3980331]
[1723690030505,0.22927189,58516.0,58515.0,0.44869719]
[1723690030712,0.161,58516.0,58515.0,0.44869719]
[1723690030913,0.22927189,58516.0,58515.0,0.44869719]
[1723690031114,0.161,58516.0,58515.0,0.44869719]
[1723690031509,0.22927189,58516.0,58515.0,0.41074692]
[1723690031906,0.161,58516.0,58515.0,0.41074692]
[1723690032109,0.161,58516.0,58515.0,0.3980331]
[1723690032515,0.220803,58516.0,58515.0,0.38887258]
[1723690032719,0.28907489,58516.0,58515.0,0.38887258]
[1723690033016,0.220803,58516.0,58515.0,0.33822436]
[1723690033217,0.28907562,58516.0,58515.0,0.33822436]
[1723690035321,0.28908156,58516.0,58515.0,0.33822436]
[1723690035615,0.220803,58516.0,58515.0,0.33822436]
[1723690036115,0.28908316,58516.0,58515.0,0.161]
[1723690036315,0.22928016,58516.0,58515.0,0.39803351]
[1723690036513,0.22928016,58516.0,58515.0,0.220804]
[1723690036823,0.161,58516.0,58515.0,0.39803169]
[1723690039019,0.220803,58516.0,58515.0,0.33822769]
[1723690039518,0.220803,58516.0,58515.0,0.38887591]
[1723690039823,0.28909734,58516.0,58515.0,0.38887598]
[1723690040215,0.28909733,58516.0,58515.0,0.38887598]
[1723690040909,0.220803,58516.0,58515.0,0.38887598]
[1723690041511,0.220803,58516.0,58515.0,0.33822776]
[1723690041709,0.28909661,58516.0,58515.0,0.33822776]
[1723690042714,0.22929361,58516.0,58515.0,0.33822776]
[1723690042915,0.161,58516.0,58515.0,0.39803176]
[1723690043523,0.161,58516.0,58515.0,0.39802869]
[1723690044411,0.161,58516.0,58515.0,0.63442869]
[1723690045018,0.06829361,58523.0,58515.0,0.63442869]
[1723690045019,0.0512137,58528.0,58525.0,0.059794]
[1723690045217,0.01216464,58528.0,58527.0,0.296192]
[1723690045425,0.0512137,58535.0,58528.0,0.05979]
[1723690045720,0.05979,58529.0,58528.0,0.16]
[1723690046020,0.19979,58529.0,58528.0,0.16]
[1723690046219,0.19979,58529.0,58526.0,0.00025637]
[1723690046411,0.059792,58527.0,58526.0,0.15025637]
[1723690046616,0.199792,58527.0,58526.0,0.32745163]
[1723690046914,0.199792,58527.0,58526.0,0.32745652]
[1723690047309,0.199792,58527.0,58526.0,0.15025637]
[1723690047720,0.199792,58527.0,58526.0,0.32745912]
[1723690047927,0.204792,58527.0,58526.0,0.15125637]
[1723690049127,0.212792,58527.0,58526.0,0.15225637]
[1723690049516,0.573592,58527.0,58526.0,0.15225637]
[1723690050427,0.573592,58527.0,58526.0,0.32945912]
[1723690050619,0.573592,58527.0,58526.0,0.15225637]
[1723690050818,0.573592,58527.0,58526.0,0.32945809]
[1723690052428,0.573592,58527.0,58526.0,0.15225637]
[1723690052820,0.62471876,58527.0,58526.0,0.32945268]
[1723690053321,0.573592,58527.0,58526.0,0.32945268]
[1723690053528,0.62471876,58527.0,58526.0,0.32945268]
[1723690054420,0.153,58527.0,58526.0,0.32945268]
[1723690055125,0.153,58527.0,58526.0,0.38924568]
[1723690055922,0.5138,58527.0,58526.0,0.38924568]
[1723690056128,0.573592,58527.0,58526.0,0.15225637]
[1723690057326,0.62471048,58527.0,58526.0,0.15225637]
[1723690057629,0.62470904,58527.0,58526.0,0.15225637]
[1723690058424,0.573592,58527.0,58526.0,0.15225637]
[1723690059921,0.573592,58527.0,58526.0,0.32944815]
[1723690060119,0.573592,58527.0,58526.0,0.15225637]
[1723690060830,0.62470904,58527.0,58526.0,0.32944963]
[1723690061025,0.573592,58527.0,58526.0,0.32944963]
[1723690061433,0.573592,58527.0,58526.0,0.15225637]
[1723690061618,0.573592,58527.0,58526.0,0.32945667]
[1723690065233,0.573592,58527.0,58526.0,0.32945321]
[1723690066428,0.64188561,58527.0,58526.0,0.32945321]
[1723690066830,0.64188561,58527.0,58526.0,0.15225637]
[1723690067026,0.64188561,58527.0,58526.0,0.32945808]
[1723690068729,0.573592,58527.0,58526.0,0.15225637]
[1723690069731,0.62474779,58527.0,58526.0,0.32945807]
[1723690070031,0.573592,58527.0,58526.0,0.32945807]
[1723690072640,0.573592,58527.0,58526.0,0.32945012]
[1723690074336,0.64188561,58527.0,58526.0,0.15225637]
[1723690075041,0.64188561,58527.0,58526.0,0.32945012]
[1723690075233,0.573592,58527.0,58526.0,0.32945012]
[1723690076642,0.573592,58527.0,58526.0,0.15225637]
[1723690077040,0.573592,58527.0,58526.0,0.20267536]
[1723690077631,0.573592,58527.0,58526.0,0.37986574]
[1723690079542,0.573592,58527.0,58526.0,0.20267536]
[1723690080236,0.573592,58527.0,58526.0,0.15225637]
[1723690080839,0.573592,58527.0,58526.0,0.32944697]
[1723690081531,0.573592,58527.0,58526.0,0.15225637]
[1723690084041,0.212792,58527.0,58526.0,0.15225637]
[1723690085647,0.212792,58527.0,58526.0,0.32944697]
[1723690086344,0.212792,58527.0,58526.0,0.15225637]
[1723690086535,0.212792,58527.0,58526.0,0.3294443]
[1723690090240,0.28111529,58527.0,58526.0,0.3294443]
[1723690090848,0.212792,58527.0,58526.0,0.39666182]
[1723690091437,0.08051311,58529.0,58526.0,1.30926182]
[1723690091743,0.05122596,58542.0,58541.0,0.059777]
[1723690091942,0.05122596,58544.0,58541.0,1.32241952]
[1723690092145,0.07122596,58544.0,58543.0,0.0945]
[1723690092341,0.440574,58544.0,58543.0,0.2545]
[1723690092537,0.440574,58544.0,58543.0,0.16]
[1723690092738,1.353014,58544.0,58537.0,0.00025637]
[1723690092937,0.119558,58539.0,58538.0,0.17715443]
[1723690093142,0.11956,58538.0,58537.0,0.00025637]
[1723690093341,0.68016777,58538.0,58527.0,0.0945]
[1723690093537,0.47173947,58529.0,58528.0,0.17718495]
[1723690093743,0.560589,58529.0,58528.0,0.32718495]
[1723690093951,0.560589,58529.0,58528.0,0.32718771]
[1723690094150,0.059798,58521.0,58520.0,0.06724941]
[1723690094348,1.144896,58521.0,58520.0,0.00348909]
[1723690094645,1.16567626,58521.0,58506.0,0.05053709]
[1723690094840,0.059817,58503.0,58501.0,0.05053709]
[1723690095036,0.420618,58502.0,58501.0,0.20060271]
[1723690095244,0.580618,58502.0,58501.0,0.15]
[1723690095638,0.58078544,58502.0,58501.0,0.15]
[1723690095869,0.36096744,58502.0,58501.0,0.15]
[1723690096245,0.45096744,58502.0,58501.0,0.162]
[1723690096743,0.00025637,58507.0,58501.0,1.0858]
[1723690096938,0.00025637,58507.0,58503.0,0.05055562]
[1723690097139,0.00025637,58507.0,58503.0,0.21055562]
[1723690097342,0.01561645,58507.0,58503.0,0.21055562]
[1723690097548,0.12561645,58507.0,58503.0,0.16]
[1723690097744,4.478e-05,58506.0,58503.0,0.16]
[1723690098250,4.478e-05,58506.0,58503.0,0.219816]
[1723690098849,0.11004478,58506.0,58503.0,0.169]
[1723690099147,0.059815,58504.0,58503.0,0.009]
[1723690099357,0.199815,58504.0,58503.0,0.009]
[1723690099545,0.199815,58504.0,58503.0,0.018]
[1723690099853,0.25093467,58504.0,58503.0,0.018]
[1723690100043,0.199815,58504.0,58503.0,0.009]
[1723690100252,0.199815,58504.0,58503.0,0.018]
[1723690100639,0.199815,58504.0,58503.0,0.009]
[1723690100849,0.199815,58504.0,58503.0,0.018]
[1723690104450,0.199815,58504.0,58503.0,0.178]
[1723690107750,0.25963,58504.0,58503.0,0.178]
[1723690108065,1.112615,58504.0,58503.0,0.018]
[1723690108449,0.712615,58504.0,58503.0,0.018]
[1723690108649,0.199815,58504.0,58503.0,0.018]
[1723690109148,0.199815,58504.0,58503.0,0.009]
[1723690109353,0.199815,58504.0,58503.0,0.011]
[1723690109652,0.712615,58504.0,58503.0,0.011]
[1723690109848,0.199815,58504.0,58503.0,0.004]
[1723690110063,0.712615,58504.0,58503.0,0.004]
[1723690112560,0.77243,58504.0,58503.0,0.00383255]
[1723690112955,0.712615,58504.0,58503.0,0.00383255]
[1723690113352,0.199815,58504.0,58503.0,0.00383255]
[1723690114157,0.77243,58504.0,58503.0,0.00383255]
[1723690115067,1.13323,58504.0,58503.0,0.00383255]
[1723690118372,1.53323,58504.0,58503.0,0.00383255]
[1723690123462,1.21851018,58504.0,58503.0,0.00383255]
[1723690126459,1.21858992,58504.0,58503.0,0.00383255]
[1723690127469,1.16093317,58504.0,58503.0,0.00383255]
[1723690127870,1.25553317,58504.0,58503.0,0.00383255]
[1723690130463,0.74273317,58504.0,58503.0,0.00383255]
[1723690130669,0.68291817,58504.0,58503.0,0.00383255]
[1723690131271,0.58831817,58504.0,58503.0,0.00383255]
[1723690131472,0.68291817,58504.0,58503.0,0.00383255]
[1723690132976,0.655215,58504.0,58503.0,0.00383255]
[1723690133177,0.68291795,58504.0,58503.0,0.00383255]
[1723690134974,0.68291722,58504.0,58503.0,0.00383255]
[1723690135173,0.655215,58504.0,58503.0,0.00383255]
[1723690135374,0.68291743,58504.0,58503.0,0.00383255]
[1723690135577,0.68291718,58504.0,58503.0,0.00383255]
[1723690137578,0.68291743,58504.0,58503.0,0.00383255]
[1723690138776,0.32211743,58504.0,58503.0,0.00383255]
[1723690139285,0.68291743,58504.0,58503.0,0.00383255]
[1723690140081,0.32211743,58504.0,58503.0,0.00383255]
[1723690140287,0.68291743,58504.0,58503.0,0.00383255]
[1723690140587,0.74273243,58504.0,58503.0,0.00383255]
[1723690140897,0.119652,58493.0,58492.0,6.8e-07]
[1723690141186,0.05983,58489.0,58488.0,0.1705]
[1723690141372,0.05983,58489.0,58488.0,0.3205]
[1723690141373,0.33214012,58489.0,58488.0,0.3205]
[1723690141578,0.30443,58489.0,58488.0,0.3205]
[1723690141778,0.3898191,58489.0,58488.0,0.3205]
[1723690141974,0.3898191,58489.0,58488.0,0.15]
[1723690142182,0.059834,58485.0,58484.0,0.1701]
[1723690142392,0.65527878,58485.0,58484.0,0.3401]
[1723690143689,0.65527878,58485.0,58484.0,0.3441]
[1723690143889,0.56067878,58485.0,58484.0,0.3441]